[Event "Germany Countries-chT Youth 2022"]
[Site "Wiesbaden"]
[Date "2022.10.03"]
[Round "6"]
[White "Wong, Gengchun"]
[Black "Post, Hugo"]
[Result "1/2-1/2"]
[ECO "B94"]
[WhiteElo "2195"]
[BlackElo "2192"]
[Annotator "TA"]
[PlyCount "111"]
[EventDate "2022.09.28"]
[EventType "team-tourn"]
[EventRounds "7"]
[EventCountry "GER"]
[SourceTitle "playchess.com"]
[Source "ChessBase"]
[SourceQuality "1"]
[TimeControl "40/5400+30:1800+30"]

{[%evp 11,111,9,27,31,29,23,34,11,17,11,8,-38,-43,-57,-4,-4,-11,-9,-18,-8,22,34,17,28,21,25,25,28,36,-7,0,0,72,0,5,0,13,-15,0,0,0,0,0,0,0,0,0,0,0,0,0,0,0,0,8,8,8,8,8,8,8,0,0,0,0,0,0,0,0,0,0,0,8,8,8,8,8,0,7,0,7,0,0,0,7,0,7,7,8,8,8,8,8,8,8,8,8,8,8,0,0,0]} 1. e4 {[%emt 0:00:03]} c5 {[%emt 0:00:06]} 2. Nf3 {[%emt 0:00:03]} d6 {[%emt 0:00:03]} 3. d4 {[%emt 0:00:04]} cxd4 {[%emt 0:00:04]} 4. Nxd4 {[%emt 0:00:04]} Nf6 {[%emt 0:00:07]} 5. Nc3 {[%emt 0:00:03]} a6 {[%emt 0:00:07]} 6. Bg5 {[%emt 0:00:24]} Nbd7 {[%emt 0:00:05]} 7. Qe2 {[%emt 0:00:08] 7.Qe2 is a critical line. B94: Sicilian Najdorf: 6 Bg5 Nbd7.} h6 {[%emt 0:00:04]} 8. Bh4 {[%emt 0:00:54]} g6 {[%emt 0:00:06]} 9. O-O-O {[%emt 0:00:27] White is slightly better.} e5 {[%emt 0:00:47]} 10. Nb3 {[%emt 0:04:11][%cal Of2f4]} Be7 {[%emt 0:00:08]} 11. Bxf6 {[%emt 0:04:50]} (11. a3 $1 $11 {should be considered.}) 11... Nxf6 $15 {[%emt 0:00:20]} 12. g3 {[%emt 0:00:37] [#]} Qc7 $146 {[%emt 0:07:06]} (12... b5 $15) ({Predecessor:} 12... Bg4 13. f3 Be6 14. Bg2 Qc7 15. Kb1 Kf8 16. f4 Kg7 17. Rhe1 Rac8 18. fxe5 dxe5 {0-1 (42) Kapitanchuk,T (2045)-Quirhuayo Chumbe,G (2215) Montevideo 2016}) 13. h4 $11 {[%emt 0:03:08]} b5 {[%emt 0:09:18]} 14. Bh3 {[%emt 0:11:39]} Bxh3 {[%emt 0:17:08]} 15. Rxh3 {[%emt 0:00:04][%cal Oh4h5]} Rc8 {[%emt 0:00:48]} 16. Rhh1 {[%emt 0:09:01]} O-O {[%emt 0:11:40]} 17. Kb1 {[%emt 0:03:20][%cal Oh4h5]} b4 {[%emt 0:07:29]} 18. Nd5 {[%emt 0:00:40]} Nxd5 {[%emt 0:00:12]} 19. Rxd5 {[%emt 0:00:22]} Qc4 $1 {[%emt 0:01:00]} 20. Re1 {[%emt 0:11:13]} Qxe2 {[%emt 0:07:01]} 21. Rxe2 {[%emt 0:00:04]} Rc7 {[%emt 0:10:12] [#]} (21... f5 $11 {keeps the balance.}) 22. Nd2 {[%emt 0:05:35]} (22. Ra5 $1 $16) 22... f5 {[%emt 0:01:38] The position is equal.} 23. exf5 {[%emt 0:00:30]} gxf5 {[%emt 0:00:31]} 24. Kc1 {[%emt 0:00:44]} Kf7 {[%emt 0:01:42]} 25. f4 {[%emt 0:26:49][%cal Bf2f4,Bf4e5,Be5d6][%mdl 32]} Rg8 {[%emt 0:06:06]} 26. fxe5 {[%emt 0:05:09]} Rxg3 {[%emt 0:00:12] [#] Strongly threatening ...Rg1+.} 27. Nf1 {[%emt 0:02:50]} Rg1 {[%emt 0:00:27]} 28. exd6 {[%emt 0:04:30]} Rxf1+ {[%emt 0:00:05]} 29. Kd2 {[%emt 0:00:02]} Rd7 {[%emt 0:02:11]} 30. Rxe7+ {[%emt 0:00:09]} Rxe7 {[%emt 0:00:03]} 31. dxe7 {[%emt 0:00:04]} Kxe7 {[%emt 0:00:04][%mdl 4096] Endgame KR-KR} 32. Ra5 {[%emt 0:07:31]} Rh1 {[%emt 0:00:54]} 33. Rxf5 {[%emt 0:00:43]} Rxh4 {[%emt 0:00:08]} 34. Ra5 {[%emt 0:00:09]} Rd4+ {[%emt 0:00:33]} 35. Ke3 {[%emt 0:00:05]} Rd6 {[%emt 0:00:08]} 36. a3 {[%emt 0:01:05]} bxa3 {[%emt 0:01:11]} 37. Rxa3 {[%emt 0:00:05]} Rb6 {[%emt 0:04:16]} 38. c4 {[%emt 0:00:51]} Rxb2 {[%emt 0:02:31]} 39. Rxa6 {[%emt 0:00:20]} h5 {[%emt 0:02:07]} 40. Rh6 {[%emt 0:00:26]} Kd7 {[%emt 0:04:40]} 41. Kd4 {[%emt 0:30:47]} Rg2 {[%emt 0:30:41]} 42. Rxh5 {[%emt 0:00:12]} Rg6 {[%emt 0:00:07]} 43. Kc5 $1 {[%emt 0:00:15]} Kc7 {[%emt 0:00:16]} 44. Kb5 {[%emt 0:00:40]} Rb6+ {[%emt 0:01:22]} 45. Kc5 {[%emt 0:00:04] Rh7+ would kill now.} Rc6+ {[%emt 0:00:05]} 46. Kd4 {[%emt 0:00:05]} Rg6 {[%emt 0:00:07]} 47. Rc5+ {[%emt 0:00:25]} Kd7 {[%emt 0:01:28]} 48. Kc3 {[%emt 0:00:56]} Rb6 {[%emt 0:02:07]} 49. Rh5 {[%emt 0:00:05]} Kc7 {[%emt 0:00:39]} 50. Rh7+ {[%emt 0:00:08]} Kc8 {[%emt 0:00:05]} 51. Kd4 {[%emt 0:00:04]} Rg6 {[%emt 0:00:08]} 52. Kc5 {[%emt 0:00:08]} Rf6 {[%emt 0:00:21]} 53. Kb5 $1 {[%emt 0:00:04]} Rg6 {[%emt 0:00:26]} 54. c5 {[%emt 0:00:04]} Rf6 {[%emt 0:00:32]} 55. c6 {[%emt 0:00:08]} Rf1 {[%emt 0:00:12]} 56. Rh8+ $1 {[%emt 0:00:03] Weighted Error Value: White=0.07 (flawless) /Black=0.07 (flawless)} 1/2-1/2

[Event "Germany Countries-chT Youth 2022"]
[Site "Wiesbaden"]
[Date "2022.10.03"]
[Round "6"]
[White "Hommer, Jeremy"]
[Black "Muller, Magnus"]
[Result "1/2-1/2"]
[ECO "D02"]
[WhiteElo "2184"]
[BlackElo "1464"]
[Annotator "TA"]
[PlyCount "73"]
[EventDate "2022.09.28"]
[EventType "team-tourn"]
[EventRounds "7"]
[EventCountry "GER"]
[SourceTitle "playchess.com"]
[Source "ChessBase"]
[SourceQuality "1"]
[TimeControl "40/5400+30:1800+30"]

{[%evp 11,73,0,0,0,0,0,7,3,21,16,29,17,35,35,48,50,44,0,0,-6,0,-20,0,-19,0,-26,-7,-13,-8,-24,0,-47,-54,-46,-49,-50,-47,-70,-2,-11,0,0,0,0,0,0,0,0,0,0,0,0,0,0,0,0,0,0,0,0,0,0,0,0]} 1. d4 {[%emt 0:00:04]} Nf6 {[%emt 0:00:58]} 2. Nf3 {[%emt 0:00:07]} d5 {[%emt 0:00:17]} 3. Bf4 {[%emt 0:00:13]} c5 {[%emt 0:01:08]} 4. e3 {[%emt 0:00:07]} e6 {[%emt 0:00:56]} 5. Nbd2 {[%emt 0:00:32][%cal Bb1d2,Bd2f3,Bf3e5][%mdl 32]} Bd6 {[%emt 0:00:06]} 6. Ne5 {[%emt 0:02:18]} O-O {[%emt 0:03:27]} 7. c3 {[%emt 0:01:12] D02: 1 d4 d5 2 Nf3 sidelines, including 2...Nf6 3 g3 and 2...Nf6 3 Bf4.} Nc6 {[%emt 0:07:54] 7...Qc7 gains popularity.} 8. Bd3 {[%emt 0:00:30]} Qc7 {[%emt 0:01:47][%cal Rc6e5]} 9. Ndf3 {[%emt 0:00:25]} Ne4 {[%emt 0:09:58]} 10. O-O {[%emt 0:08:14]} f5 {[%emt 0:01:44] [#]} 11. h4 $146 {[%emt 0:14:49]} ({Predecessor:} 11. Nxc6 bxc6 12. Bxd6 Qxd6 13. Ne5 cxd4 14. cxd4 c5 15. f4 cxd4 16. exd4 Ba6 17. Bxa6 Qxa6 {½-½ (27) Foldes,G-Havasi,K Temesvar 1912}) 11... Nf6 {[%emt 0:06:08]} 12. Nxc6 {[%emt 0:08:39]} bxc6 13. Bxd6 {[%emt 0:02:07]} Qxd6 {[%emt 0:01:02]} 14. Ne5 {[%emt 0:00:23]} Nd7 {[%emt 0:02:53]} 15. f4 {[%emt 0:03:02]} cxd4 {[%emt 0:04:16]} 16. exd4 {[%emt 0:03:02]} c5 {[%emt 0:01:08]} 17. Qd2 {[%emt 0:03:40]} Rb8 18. Rab1 {[%emt 0:00:14]} cxd4 {[%emt 0:01:22]} 19. cxd4 Nxe5 20. fxe5 {[%emt 0:01:27]} Qb6 {[%emt 0:01:16]} 21. Qe3 {[%emt 0:05:12]} (21. Be2 $11) 21... Ba6 $15 {[%cal Of5f4] [#] ...f4! is the strong threat.} 22. Bxa6 {[%emt 0:05:00]} Qxa6 {[%emt 0:03:00]} 23. a3 {[%emt 0:00:09]} Rfc8 {[%emt 0:00:33]} 24. b4 {[%emt 0:01:17]} Rc2 {[%emt 0:01:29]} (24... h6 $15) 25. Rbc1 $11 {[%emt 0:02:26] The position is equal.} Rxc1 {[%emt 0:00:55]} 26. Rxc1 {[%emt 0:00:26][%mdl 4096] Endgame KQR-KQR} Rc8 {[%emt 0:00:17] Prevents Rc7.} 27. Rc5 {[%emt 0:01:57]} Rxc5 {[%emt 0:02:38]} 28. bxc5 {[%emt 0:02:42] KQ-KQ} Qc4 {Prevents Qc3.} 29. Qd2 {[%emt 0:05:05]} Kf7 {[%emt 0:05:30]} 30. Kh2 {[%emt 0:02:03]} Qb3 {[%emt 0:01:04]} 31. Qc1 {[%emt 0:05:13] [#] And now c6 would win.} Qc4 {[%emt 0:00:45]} 32. Qb2 {[%emt 0:01:01] Hoping for Qb7+.} Kg6 {[%emt 0:01:20]} 33. Qb4 {[%emt 0:04:54] Strongly threatening Qxc4.} Qc1 {[%emt 0:02:57]} 34. Qb3 {[%emt 0:03:03]} Kf7 {[%emt 0:02:38]} 35. Qb7+ {[%emt 0:02:26]} Kg6 {[%emt 0:00:25]} 36. Qb3 {[%emt 0:00:57]} Kf7 {[%emt 0:00:06]} 37. Qb7+ {[%emt 0:01:19] Weighted Error Value: White=0.08 (flawless) /Black=0.09 (flawless)} 1/2-1/2

[Event "Germany Countries-chT Youth 2022"]
[Site "Wiesbaden"]
[Date "2022.10.03"]
[Round "6"]
[White "Hinrichs, Paul"]
[Black "von Mettenheim, Johannes"]
[Result "1/2-1/2"]
[ECO "E36"]
[WhiteElo "2172"]
[BlackElo "2231"]
[Annotator "TA"]
[PlyCount "65"]
[EventDate "2022.09.28"]
[EventType "team-tourn"]
[EventRounds "7"]
[EventCountry "GER"]
[SourceTitle "playchess.com"]
[Source "ChessBase"]
[SourceQuality "1"]
[TimeControl "40/5400+30:1800+30"]

{[%evp 12,65,19,15,14,22,10,0,4,0,4,5,5,6,13,13,12,14,14,13,16,0,0,0,15,0,0,0,0,0,7,-19,0,0,4,0,0,0,0,0,0,0,0,0,2,2,2,2,16,0,0,0,9,0,0,0]} 1. d4 {[%emt 0:00:05]} Nf6 {[%emt 0:00:11]} 2. c4 {[%emt 0:00:05]} e6 {[%emt 0:00:08]} 3. Nc3 {[%emt 0:00:11]} Bb4 {[%emt 0:00:07]} 4. Qc2 {[%emt 0:00:37]} d5 {[%emt 0:00:08]} 5. a3 {[%emt 0:00:22]} Bxc3+ {[%emt 0:00:07]} 6. Qxc3 {[%emt 0:00:04]} O-O {[%emt 0:00:36] now supersedes 6...Ne4.} 7. Bg5 {[%emt 0:01:02] The position is equal.} h6 {[%emt 0:04:42] E36: Nimzo-Indian: Classical: 4...d5 5 a3.} 8. Bxf6 {[%emt 0:01:57]} Qxf6 {[%emt 0:00:12]} 9. e3 {[%emt 0:00:04]} c5 {[%emt 0:02:16]} 10. Nf3 {[%emt 0:04:56]} Nc6 {[%emt 0:18:42]} 11. cxd5 {[%emt 0:15:28]} cxd4 {[%emt 0:00:08]} 12. Nxd4 {[%emt 0:00:08]} Nxd4 {[%emt 0:00:06]} 13. Qxd4 {[%emt 0:00:04]} Qxd4 {[%emt 0:00:06]} 14. exd4 {[%emt 0:00:04]} Rd8 {[%emt 0:00:12]} 15. Bc4 {[%emt 0:01:17]} exd5 {[%emt 0:00:07] [#]} 16. Bb3 $146 {[%emt 0:01:01]} ({Predecessor:} 16. Bd3 Bd7 17. Kd2 Rac8 18. h4 Kf8 19. Rhe1 Re8 20. b4 Rxe1 21. Rxe1 Re8 22. Rc1 {1-0 (38) Mitrabha,G (2471)-Ganguly,S (2589) chess24.com INT 2022}) 16... a5 {[%emt 0:11:18]} 17. Bc2 {[%emt 0:13:40]} Be6 {[%emt 0:05:24]} 18. O-O-O {[%emt 0:02:52]} Kf8 {[%emt 0:03:57]} 19. Rhe1 {[%emt 0:01:53]} Rdc8 {[%emt 0:01:23]} 20. Kb1 {[%emt 0:01:03]} Ra6 {[%emt 0:02:00]} 21. Ba4 {[%emt 0:02:47]} Ke7 {[%emt 0:06:50]} 22. Rc1 {[%emt 0:01:45]} Raa8 {[%emt 0:00:06]} 23. Rxc8 {[%emt 0:05:14]} Rxc8 $11 {[%emt 0:00:06][%mdl 4096] Endgame KRB-KRB} 24. Bb5 {[%emt 0:00:08] Inhibits Rc4.} Kd6 {[%emt 0:00:15]} 25. Bd3 {[%emt 0:00:11]} Bd7 {[%emt 0:03:56]} 26. Rc1 {[%emt 0:03:00]} Re8 {[%emt 0:05:29]} 27. Kc2 {[%emt 0:00:32]} b6 {[%emt 0:03:02]} 28. Kd2 {[%emt 0:00:10]} Bc6 {[%emt 0:02:33]} 29. Rc3 {[%emt 0:01:14]} Re7 {[%emt 0:00:59]} 30. Rb3 {[%emt 0:00:26]} Rb7 {[%emt 0:01:15]} 31. Rc3 {[%emt 0:01:23]} Re7 {[%emt 0:00:57]} 32. Rb3 {[%emt 0:01:37]} Rb7 {[%emt 0:01:54]} 33. Rc3 {[%emt 0:00:20] An interesting draw.  Weighted Error Value: White=0.04 (flawless) /Black=0.03 (flawless)} 1/2-1/2

[Event "Germany Countries-chT Youth 2022"]
[Site "Wiesbaden"]
[Date "2022.10.03"]
[Round "6"]
[White "Jeschke, Jan"]
[Black "Schmider, Niklas"]
[Result "1-0"]
[ECO "B90"]
[WhiteElo "2146"]
[BlackElo "2411"]
[Annotator "TA"]
[PlyCount "81"]
[EventDate "2022.09.28"]
[EventType "team-tourn"]
[EventRounds "7"]
[EventCountry "GER"]
[SourceTitle "playchess.com"]
[Source "ChessBase"]
[SourceQuality "1"]
[TimeControl "40/5400+30:1800+30"]

{[%evp 15,81,25,21,29,23,29,37,18,45,37,38,26,30,11,18,20,14,-3,60,-18,95,97,112,94,110,123,141,143,130,135,140,94,100,75,85,86,82,86,78,63,63,51,80,77,261,331,310,318,256,268,606,593,594,593,597,593,830,705,922,709,946,932,1394,1002,29982,29983,29987,29988]} 1. e4 {[%emt 0:00:06]} c5 {[%emt 0:00:08]} 2. Nf3 {[%emt 0:00:14]} d6 {[%emt 0:00:07]} 3. d4 {[%emt 0:00:07]} cxd4 {[%emt 0:00:03]} 4. Nxd4 {[%emt 0:00:06]} Nf6 {[%emt 0:00:04]} 5. Nc3 {[%emt 0:00:06]} a6 {[%emt 0:00:04]} 6. f3 {[%emt 0:00:40]} e5 {[%emt 0:00:16]} 7. Nb3 {[%emt 0:00:10]} h5 {[%emt 0:00:52]} 8. Be3 {[%emt 0:00:16]} Be6 {[%emt 0:00:10]} 9. Nd5 {[%emt 0:01:48] B90: Sicilian Najdorf: Unusual White 6th moves, 6 Be3 Ng4 and 6 Be3 e5.} Bxd5 {[%emt 0:00:31]} 10. exd5 {[%emt 0:00:06]} Nbd7 {[%emt 0:00:25]} 11. Qd2 {[%emt 0:00:52] White is slightly better.} Rc8 {[%emt 0:07:01]} 12. c4 {[%emt 0:03:59]} b6 {[%emt 0:04:51]} 13. Be2 {[%emt 0:01:35]} g6 {[%emt 0:04:19]} 14. O-O {[%emt 0:00:13]} Bg7 {[%emt 0:01:19]} 15. Rae1 {[%emt 0:09:18]} O-O {[%emt 0:04:08] [#]} 16. g4 $146 {[%emt 0:00:55][%cal Bg2g4,Bg4g5][%mdl 32]} ({Predecessor:} 16. Kh1 Re8 17. Qd1 a5 18. Bg5 Qc7 19. Nd2 e4 20. Nb1 exf3 21. gxf3 Ne5 22. Na3 {½-½ (69) Bocharov,I (2568)-Dominguez Perez,L (2750) Sochi 2019}) 16... a5 {[%emt 0:12:35]} (16... hxg4 $11 17. fxg4 b5) 17. Kh1 {[%emt 0:16:58]} (17. g5 $14 Nh7 18. Kh1) 17... Qc7 {[%emt 0:16:07]} (17... hxg4 $11 18. fxg4 a4) 18. g5 $16 {[%emt 0:21:29]} Nh7 {[%emt 0:01:29]} 19. Na1 {[%emt 0:01:01][%cal Bb3a1,Ba1c2,Bc2a3,Ba3b5][%mdl 32]} Nc5 {[%emt 0:04:30]} 20. Nc2 {[%emt 0:01:49]} Rfe8 {[%emt 0:03:32]} 21. Na3 {[%emt 0:00:36]} Qd7 {[%emt 0:02:10]} 22. Nb5 {[%emt 0:01:08]} Rcd8 {[%emt 0:02:02]} 23. Bd1 {[%emt 0:04:08]} ({White should try} 23. b3) 23... e4 {[%emt 0:05:25]} 24. f4 {[%emt 0:11:29]} Nd3 {[%emt 0:03:41]} 25. Bxb6 {[%emt 0:00:32]} Rc8 {[%emt 0:01:44]} 26. b3 {[%emt 0:00:52][%cal Oe1e4] Strongly threatening Rxe4!} Nxe1 {[%emt 0:01:21]} 27. Rxe1 {[%emt 0:00:09] Threatens to win with a4.} a4 {[%emt 0:04:49]} 28. Qe3 {[%emt 0:03:52] White is more active.} (28. Rg1 $5 {[%cal Rd2e3]}) 28... axb3 {[%emt 0:02:12]} 29. Bxb3 {[%emt 0:00:28]} f6 $2 {[%emt 0:03:25] [#] A mistake that costs the game.} (29... Kh8 $16 {keeps fighting.}) 30. Nxd6 $1 $18 {[%emt 0:05:44][%mdl 512]} Qxd6 {[%emt 0:08:48]} 31. c5 {[%emt 0:00:12][%cal Bc4c5,Bc5c6][%mdl 32]} Qd7 {[%emt 0:01:03]} 32. c6 {[%emt 0:00:17]} Qg4 {[%emt 0:00:43]} (32... Qf5) 33. d6+ {[%emt 0:00:15]} Kh8 {[%emt 0:00:09]} 34. d7 {[%emt 0:00:17]} fxg5 {[%emt 0:00:07]} 35. fxg5 {[%emt 0:06:04]} Rf8 {[%emt 0:01:21]} 36. dxc8=Q {[%emt 0:01:22]} Qxc8 {[%emt 0:00:51]} 37. Bd5 {[%emt 0:00:36]} Re8 {[%emt 0:05:50]} 38. c7 {[%emt 0:01:47]} Re5 {[%emt 0:00:30]} 39. Bb3 {[%emt 0:03:05] Threatening mate with Rd1. This bishop pair is nice.} Rxg5 {[%emt 0:00:43]} 40. Rd1 {[%emt 0:00:17]} Nf8 {[%emt 0:00:32]} 41. Qxg5 {Weighted Error Value: White=0.12 (very precise) /Black=0.56} 1-0

[Event "Germany Countries-chT Youth 2022"]
[Site "Wiesbaden"]
[Date "2022.10.03"]
[Round "6"]
[White "Heinrich, John"]
[Black "Haubold, Sebastian Marcel"]
[Result "1-0"]
[ECO "C84"]
[WhiteElo "2139"]
[BlackElo "2034"]
[Annotator "TA"]
[PlyCount "79"]
[EventDate "2022.09.28"]
[EventType "team-tourn"]
[EventRounds "7"]
[EventCountry "GER"]
[SourceTitle "playchess.com"]
[Source "ChessBase"]
[SourceQuality "1"]
[TimeControl "40/5400+30:1800+30"]

{[%evp 22,79,52,27,63,57,49,16,17,11,19,-31,-27,-70,-6,-64,-10,-56,12,-39,-11,-70,-34,-147,-139,-185,-174,-175,-24,-94,62,50,143,123,211,146,192,198,253,230,484,491,600,543,573,558,1053,584,861,785,912,912,1177,1215,29986,29987,29990,6628,29991,29992]} 1. e4 {[%emt 0:00:03]} e5 {[%emt 0:00:11]} 2. Nf3 {[%emt 0:00:06]} Nc6 {[%emt 0:00:07]} 3. Bb5 {[%emt 0:00:12]} a6 {[%emt 0:00:11]} 4. Ba4 {[%emt 0:00:03]} Nf6 {[%emt 0:00:16]} 5. O-O {[%emt 0:00:29]} Be7 {[%emt 0:00:15]} 6. d3 {[%emt 0:00:09]} d6 {[%emt 0:00:47]} 7. c3 {[%emt 0:03:32]} b5 {[%emt 0:01:06]} 8. Bc2 {[%emt 0:00:19]} O-O {[%emt 0:03:04]} 9. a4 {[%emt 0:01:10]} Bb7 {[%emt 0:04:05]} 10. Re1 {[%emt 0:00:32]} Re8 {[%emt 0:03:33]} 11. Nbd2 {[%emt 0:01:44][%cal Bb1d2,Bd2f1,Bf1g3][%mdl 32]} Bf8 {[%emt 0:01:35]} 12. Nf1 {[%emt 0:01:56]} g6 {[%emt 0:04:03] C84: Closed Ruy Lopez: Unusual White 6th moves.} 13. Ng3 {[%emt 0:04:07]} Bg7 {[%emt 0:01:35]} 14. d4 {[%emt 0:06:15]} exd4 {[%emt 0:03:08] The position is equal.} 15. cxd4 {[%emt 0:00:18]} Nb4 {[%emt 0:05:23] [#]} 16. Bb3 $146 {[%emt 0:08:11]} (16. Bb1 $11) ({Predecessor:} 16. d5 Nxc2 17. Qxc2 Qd7 18. Bf4 c6 19. dxc6 Qxc6 20. Qxc6 Bxc6 21. Nd4 Bxe4 22. axb5 axb5 23. Nxb5 Rxa1 24. Rxa1 {½-½ (37) Kobalia,M (2628)-Kovalenko,I (2684) Tallinn 2016}) 16... c5 $1 $15 {[%emt 0:10:31][%cal Rb7e4]} 17. d5 {[%emt 0:04:34]} Ng4 {[%emt 0:04:49]} (17... Qc7 $15) 18. Re2 {[%emt 0:11:04]} (18. Bg5 $11 f6 19. Bd2) 18... Rc8 {[%emt 0:14:52]} (18... Ne5 $15 19. Nxe5 Bxe5) 19. Bc2 {[%emt 0:05:57]} (19. Bg5 $1 $11 {was preferrable.} Qd7 20. h3) 19... Rc7 {[%emt 0:06:13]} (19... Nxc2 $15 20. Rxc2 Nf6 21. axb5 axb5) 20. h3 {[%emt 0:07:06]} ({White should try} 20. Bb1 $11) 20... Ne5 {[%emt 0:00:12]} 21. Ne1 {[%emt 0:00:15]} ({Better is} 21. Nxe5 $11 Bxe5 22. Bb1) 21... h5 {[%emt 0:05:28]} 22. f4 {[%emt 0:03:38]} (22. Bb1 $15) 22... Nc4 {[%emt 0:00:17]} 23. Bd3 {[%emt 0:17:21]} (23. Bb1 $17) 23... Nxd3 {[%emt 0:04:32]} 24. Qxd3 {[%emt 0:01:29]} Rce7 $2 {[%emt 0:00:40]} (24... Na5 $19 {aiming for ...h4.} 25. Qd1 (25. axb5 $2 c4 $19) 25... c4) 25. Nf3 {[%emt 0:01:59] [#]} (25. axb5 $11 axb5 26. Nf3) 25... h4 $2 {[%emt 0:04:15]} ({Black should play} 25... Na5 $1 $17 {Strongly threatening ...c4.} 26. axb5 c4) 26. Nxh4 $14 {[%emt 0:00:38]} Bd4+ {[%emt 0:00:05]} (26... Nb6 $14) 27. Kh2 $16 {[%emt 0:00:43]} Bxd5 {[%emt 0:04:07]} 28. Nf3 {[%emt 0:04:40]} Nxb2 {[%emt 0:03:36]} (28... Bxe4 $16 29. Rxe4 (29. Nxe4 d5 $11) 29... Rxe4) 29. Rxb2 $18 {[%emt 0:01:24]} (29. Bxb2 Bc4 30. Qc2 Bxb2 31. Qxb2 Bxe2 32. Qxe2 c4) 29... Bc4 {[%emt 0:00:40]} (29... Bxe4 $142 30. Nxe4 Rxe4) 30. Qd2 {[%emt 0:00:38]} Bxb2 {[%emt 0:00:08]} (30... Bg7 {is a better defense.} 31. axb5 axb5) 31. Bxb2 {[%emt 0:00:04]} Rb7 {[%emt 0:01:45]} (31... b4 $2 32. Bf6 d5 33. Ne5) 32. Qc3 {[%emt 0:00:33][%csl Gb2][%cal Rc3g7] [#]} f6 {[%emt 0:00:07]} 33. axb5 {[%emt 0:02:16]} axb5 {[%emt 0:00:15]} 34. f5 {[%emt 0:01:03][%cal Oa1a8] And now Ra8! would win.} Bf7 {[%emt 0:01:01]} 35. Qe3 {[%emt 0:01:56] Black must now prevent Qh6.} Kh7 {[%emt 0:05:27] Inhibits Qh6+.} 36. Qf4 {[%emt 0:02:58]} g5 {[%emt 0:01:33]} 37. Qg4 {[%emt 0:00:17]} Rg8 {[%emt 0:01:45]} 38. Nh5 {[%emt 0:00:19]} Bxh5 {[%emt 0:00:07]} 39. Qxh5+ {[%emt 0:00:05]} Kg7 {[%emt 0:00:07]} 40. Nxg5 {[%emt 0:00:11] Weighted Error Value: White=0.52/Black=0.83} 1-0